Cogmind - Beta 15 @@@ ROGUE MODE // 2025.05.15 @ 15:15:53 Player: Rubbe Result: Destroyed by 20-S79(R) with Subdweller Laser Performance ------------- Evolutions (0) 0 Regions Visited (2) 400 Robots Destroyed (11) 55 Value Destroyed (173) 173 Prototype IDs (0) 0 Alien Tech Used (0) 0 Bonus (0) 0 TOTAL SCORE: 628 Bonus ------- None Cogmind --------- Core Integrity 0/250 Matter 77/300 Energy 100/100 System Corruption 0% Temperature Cool (6) Movement Rolling (85) Location -10/Subcaves Parts ------- > --- POWER (1) -------- (None) > --- PROPULSION (2) --- Wheel Armored Wheel > --- UTILITY (2) ------ Medium Storage Unit > --- WEAPON (2) ------- Heavy Assault Rifle > --- INVENTORY (10) --- Ion Engine Light Ion Engine Wheel Compact Wheel Armored Wheel Armored Wheel Armored Wheel Heat Sink Visual Processing Unit Peak State ------------ > --- POWER ------------ Light Ion Engine > --- PROPULSION ------- Wheel Armored Wheel > --- UTILITY ---------- Medium Storage Unit > --- WEAPON ----------- Heavy Assault Rifle Heavy Assault Rifle > --- INVENTORY -------- Ion Engine Light Ion Engine Wheel Compact Wheel Armored Wheel Armored Wheel Armored Wheel Heat Sink Visual Processing Unit Assault Rifle [Rating: 10] Favorites ----------- Power Ion Engine Engine Ion Engine Propulsion Wheel Wheel Wheel Utility Medium Storage Unit Device Seismic Detector Storage Medium Storage Unit Weapon Small Laser Energy Gun Small Laser Ballistic Gun Heavy Assault Rifle Build | -11 -10 -10 ------- Run | Yrd Mat Sub Slots Evolved . | . . . Power . | . . . Propulsion . | . . . Utility . | . . . Weapon . | . . . Parts Attached 15 | 8 6 1 Power 2 | 2 . . Engine 2 | 2 . . Core . | . . . Reactor . | . . . Propulsion 6 | 2 3 1 Treads . | . . . Leg . | . . . Wheel 6 | 2 3 1 Hover . | . . . Flight . | . . . Utility 3 | 2 1 . Device 1 | 1 . . Storage 2 | 1 1 . Processor . | . . . Hackware . | . . . Protection . | . . . Artifact . | . . . Weapon 4 | 2 2 . Energy Gun 1 | 1 . . Energy Cannon . | . . . Ballistic Gun 3 | 1 2 . Ballistic Cannon . | . . . Launcher . | . . . Special Weapon . | . . . Impact Weapon . | . . . Slashing Weapon . | . . . Piercing Weapon . | . . . Special Melee Weapon . | . . . Unidentified Prototypes . | . . . Parts Lost 8 | . 5 3 Power 2 | . 1 1 Propulsion 2 | . 2 . Utility 1 | . 1 . Weapon 3 | . 1 2 Highest Loss Streak 3 | . 3 3 To Critical Strikes . | . . . Average Backups 7 | 3 8 9 Power 1 | 1 1 2 Propulsion 4 | 1 5 5 Utility . | . . 2 Weapon . | . . . Tool/Special . | . . . Unused Backups 11 | 1 2 8 Power 2 | . . 2 Propulsion 5 | . 1 4 Utility 4 | 1 1 2 Weapon . | . . . Tool/Special . | . . . Average Slot Usage (%) 87 | . 90 78 Engine 12 | . 12 10 Wheel 26 | . 26 28 Device 6 | . 8 . Storage 14 | . 14 14 Energy Gun 9 | . 11 . Ballistic Gun 17 | . 15 24 Peak Build Rating 10 | 8 9 10 Average Rating 7 | 5 7 9 On Entrance 5 | . 7 9 Naked Turns . | . . . Heaviest Build 20 | 14 20 19 Greatest Support 26 | 26 26 22 Greatest Overweight (x) 1 | . 1 . Average Overweight (x) . | . . . Largest Inventory Capacity 10 | 8 10 10 Average Capacity 9 | 7 9 10 Most Carried 10 | 8 10 10 Average Carried 8 | 3 8 9 Final Capacity 10 | 8 10 10 Final Carried 10 | 8 10 9 Class Distribution -------------------- 100% | Mutant Dominant Class ---------------- Mutant | -10/Materials Mutant | -10/Subcaves Resources | -11 -10 -10 ----------- Run | Yrd Mat Sub Matter Collected 316 | 218 98 . Remotely . | . . . Salvage Created 323 | 144 179 . Parts 32 | 15 17 . Haulers Intercepted . | . . . Recyclers Shooed . | . . . Parts Field Recycled . | . . . Retrieved Matter . | . . . Parts Self-Destructed 2 | . . 2 Prevented . | . . . Kills | -11 -10 -10 ------- Run | Yrd Mat Sub Combat Hostiles Destroyed 4 | . 4 . Guns 4 | . 4 . Classes Destroyed 6 | 2 4 . Worker 1 | . 1 . Tunneler 4 | 4 . . Recycler 1 | 1 . . Watcher 1 | . 1 . Swarmer 1 | . 1 . Grunt 3 | . 3 . Best Kill Streak 3 | 3 2 . Combat Bots Only 2 | . 2 . Max Kills in Single Turn 1 | 1 1 . Gunslinging . | . . . Exploded . | . . . Melee . | . . . Uniques/NPCs Destroyed . | . . . Combat | -11 -10 -10 -------- Run | Yrd Mat Sub Hostile Shots Fired 133 | . 104 29 Missed 50 | . 37 13 Hits 83 | . 67 16 Projectile 83 | . 67 16 Critical Strikes 1 | . 1 . Damage Taken 935 | . 600 335 Core 265 | . 115 150 Absorbed by Shields . | . . . Core Remaining (%) 100 | 100 . . Volleys Fired 58 | 10 32 16 Largest 2 | 2 2 2 Hottest 63 | 60 63 46 Shots Fired 96 | 20 55 21 Gun 96 | 20 55 21 Cannon . | . . . Launcher . | . . . Special . | . . . Kinetic 64 | 10 33 21 Thermal 32 | 10 22 . Explosive . | . . . Electromagnetic . | . . . Robot Hit Streak 3 | 3 3 3 Robot Miss Streak 7 | 7 5 2 Penetration Max . | . . . Secondary Targets 1 | . 1 . Max Gunslinging Chain 1 | . 1 . Shots Hit Robots 31 | 7 18 6 Core Hits 15 | 6 8 1 Critical Kills . | . . . Critical Parts Destroyed 1 | . 1 . Critical Strikes 1 | . 1 . Destroy 1 | . 1 . Melee Attacks . | . . . Impact . | . . . Slashing . | . . . Piercing . | . . . Sneak Attacks . | . . . Combat Hostiles . | . . . Follow-up Attacks . | . . . Damage Inflicted 483 | 112 286 85 Guns 473 | 112 276 85 Cannons . | . . . Explosions . | . . . Melee . | . . . Ramming 10 | . 10 . Kinetic 341 | 49 207 85 Thermal 132 | 63 69 . Explosive . | . . . Electromagnetic . | . . . Impact . | . . . Slashing . | . . . Piercing . | . . . Highest Corruption . | . . . Average Corruption . | . . . Corruption Purged . | . . . Corruption Blocked . | . . . Overload Shots . | . . . Overflow Damage . | . . . Projectiles . | . . . Explosions . | . . . Melee . | . . . Knockbacks 1 | . 1 . Impact 1 | . 1 . Kinetic . | . . . Secondary . | . . . Self-Inflicted Damage 5 | . 5 . Shots . | . . . Rammed 1 | . 1 . Targets Rammed 1 | . 1 . Kicked . | . . . Crushed . | . . . Highest Temperature 97 | . 97 . Average Temperature 31 | . 31 . Received Heat Transfer 246 | . 150 96 Siege Activations . | . . . Martial Activations . | . . . Shielding Activations . | . . . Robots Disrupted . | . . . Combat Hostiles . | . . . Robots Corrupted . | . . . Combat Hostiles . | . . . Parts Fried . | . . . Impact Corruptions . | . . . Robots Melted . | . . . Combat Hostiles . | . . . Parts Melted . | . . . Heat Transferred 300 | 150 150 . Parts Sabotaged . | . . . Parts Stolen . | . . . Parts Stripped . | . . . Power Chain Reactions . | . . . Alert | -11 -10 -10 ------- Run | Yrd Mat Sub Maximum Alert Level . | . . . Low Security (%) 100 | 100 100 . Level 1 . | . . . Level 2 . | . . . Level 3 . | . . . Level 4 . | . . . Level 5 . | . . . High Security . | . . . Max Security . | . . . Peak Influence 65 | 15 65 . Initial . | . . . Average 13 | 3 16 . Influence Increases 217 | 25 192 . Destroy 0b10 Robot/C 80 | . 80 . Destroy 0b10 Robot/NC 35 | 25 10 . Destroy Leader 12 | . 12 . Disable Machine 15 | . 15 . Lose Combat Pursuer 75 | . 75 . Influence Decreases 217 | 25 136 56 Entered New Map 28 | . . 28 Time Decay 159 | 25 106 28 Lost Part 30 | . 30 . Squads Dispatched 2 | . 2 . Investigation 1 | . 1 . Extermination . | . . . Reinforcement 1 | . 1 . Assault . | . . . Garrison . | . . . Intercept . | . . . Searches Triggered . | . . . Construction Impeded . | . . . Haulers Reinforced . | . . . Active Scanning Responses . | . . . Cargo Convoy Interrupts . | . . . Stealth | -11 -10 -10 --------- Run | Yrd Mat Sub Distress Signals . | . . . Communications Jammed . | . . . Distress Signals . | . . . Times Spotted 15 | . 10 5 Peak Tracking Total 4 | . 4 2 Tactical Retreats 4 | . 3 1 Traps | -11 -10 -10 ------- Run | Yrd Mat Sub Traps Triggered 1 | . 1 . Indirectly . | . . . Trap Hack Attempts . | . . . Triggered . | . . . Disarmed . | . . . Reprogrammed . | . . . Reused . | . . . Traps Extracted . | . . . Installed . | . . . Triggered . | . . . Machines | -11 -10 -10 ---------- Run | Yrd Mat Sub Machines Disabled 1 | . 1 . Max in Single Turn 1 | . 1 . Machines Repaired . | . . . Machines Dismantled . | . . . Machines Sabotaged . | . . . Overloaded Fab Kills . | . . . Hacking | -11 -10 -10 --------- Run | Yrd Mat Sub Machines Accessed 1 | . 1 . Terminals 1 | . 1 . Fabricators . | . . . Repair Stations . | . . . Recycling Units . | . . . Scanalyzers . | . . . Garrison Access . | . . . Total Hacks 2 | . 2 . Successful 1 | . 1 . Failed 1 | . 1 . Catastrophic . | . . . Database Lockouts . | . . . Manual . | . . . Terminals 2 | . 2 . Fabricators . | . . . Repair Stations . | . . . Recycling Units . | . . . Scanalyzers . | . . . Garrison Access . | . . . Terminal Hacks 1 | . 1 . Emergency Access Points 1 | . 1 . Fabricator Hacks . | . . . Repair Station Hacks . | . . . Recycling Unit Hacks . | . . . Scanalyzer . | . . . Garrison Access Hacks . | . . . Unauthorized Hacks . | . . . Terminals . | . . . Fabricators . | . . . Repair Stations . | . . . Recycling Units . | . . . Scanalyzers . | . . . Garrison Access . | . . . Data Cores Recovered . | . . . Used . | . . . Hacking Detections 1 | . 1 . Full Trace Events . | . . . Feedback Events . | . . . Feedback Blocked . | . . . Robot Schematics Acquired . | . . . Robots Built . | . . . Authchips . | . . . Time . | . . . Total Robot Build Rating . | . . . Part Schematics Acquired . | . . . Parts Built . | . . . Authchips . | . . . Time . | . . . Total Part Build Rating . | . . . Parts Repaired . | . . . Time . | . . . Parts Recycled . | . . . Recycled Matter . | . . . Retrieved Matter . | . . . Retrieved Components . | . . . Parts Scanalyzed . | . . . Part Schematics Acquired . | . . . Parts Damaged . | . . . Bothacking | -11 -10 -10 ------------ Run | Yrd Mat Sub Used RIF Installer . | . . . Robots Hacked . | . . . Non-combat . | . . . Combat . | . . . Robot Hacks Applied . | . . . Relay Couplers Released . | . . . Fabnet Peak Effective % . | . . . Robots Rewired . | . . . Allies Hacked . | . . . Hacks Repelled . | . . . Allies | -11 -10 -10 -------- Run | Yrd Mat Sub Total Allies . | . . . Largest Group . | . . . Highest-Rated Group . | . . . Highest-Rated Ally . | . . . Total Orders . | . . . Ally Attacks . | . . . Total Damage . | . . . Kills . | . . . Allies Corrupted . | . . . Allies Melted . | . . . Intel | -11 -10 -10 ------- Run | Yrd Mat Sub Active Infowar (turns) 322 | 56 266 . Seismic 322 | 56 266 . Robot Analysis Total . | . . . Derelict Logs Recovered 1 | . . 1 Drone Launches . | . . . Drone Recoveries . | . . . Exploration | -11 -10 -10 ------------- Run | Yrd Mat Sub Turns Passed 659 | 117 437 105 Spaces Moved 488 | 70 341 77 Core 6 | 6 . . Treads . | . . . Legs . | . . . Wheels 482 | 64 341 77 Hover . | . . . Flight . | . . . Fastest Speed 50 | 50 90 85 Average Speed 88 | 86 90 85 Slowest Speed 100 | 90 100 85 Overloaded Moves . | . . . Propulsion Burnouts . | . . . Robots Hopped . | . . . Potential Cave-ins . | . . . Cave-ins Triggered . | . . . Exploration Rate (%) 16 | 6 36 6 Regions Visited 2 Branch Regions 1 Pre-discovered Areas 1 | . . 1 Known Exits Taken . | . . . Unknown Exits Taken 2 | 1 1 . Scrap Searched . | . . . Spaces Dug . | . . . Terrain Destroyed . | . . . Melee . | . . . Projectile . | . . . AOE . | . . . Terrain Rammed . | . . . Walls Destroyed . | . . . Machines Disabled . | . . . Actions | -11 -10 -10 --------- Run | Yrd Mat Sub Total 618 | 106 417 95 Wait 19 | . 19 . Move 486 | 69 340 77 Hop . | . . . Pick Up 28 | 17 11 . Fast Attach . | . . . Attach 12 | 7 4 1 Detach . | . . . Swap 7 | 1 5 1 Drop 7 | 2 5 . Fire 58 | 10 32 16 Melee . | . . . Ram 1 | . 1 . Kick . | . . . Crush . | . . . Escape Stasis . | . . . Rewire . | . . . Trap . | . . . Miscellaneous . | . . . Route ------- -11/Scrapyard -10/Materials (discovered 2 exits: [*Mat] / [*Sub]) -10/Subcaves History --------- Turn | Location | Event 29 | -11/Scrapyard | Discovered new exit (range 15) 118 | -11/Scrapyard | Entered Materials 317 | -10/Materials | Build established: Mutant 529 | -10/Materials | Lost 3 parts (1p1n1w) 533 | -10/Materials | Discovered new exit (range 16) 541 | -10/Materials | Discovered new exit (range 9) 555 | -10/Materials | Entered Subcaves 556 | -10/Subcaves | Approached by a straggling Scientist 568 | -10/Subcaves | Learned location of Zion (-6) 614 | -10/Subcaves | Shifting Twisted Machinery released Lgt. Humpback 628 | -10/Subcaves | Core integrity fell below 50% 647 | -10/Subcaves | Shifting Twisted Machinery released Scrap Shield 649 | -10/Subcaves | Core integrity fell below 20% 660 | -10/Subcaves | Destroyed by 20-S79(R) with Subdweller Laser Last Messages --------------- beginning to lose hope I'd never make it past all the Subs lurking out here." E5-RMP(c): "Hey, let me tag along and I can get us both out of this nasty situation. At least I think I can... The group I got separated from was talking about a shortcut back to the UFD." E5-RMP(c) destroyed. Acquired derelict log, extracted data. World map updated: -6/Zion. EK-164(u) builds Twisted Machinery. Lgt. Humpback falls loose from the Twisted Machinery. Hvy. Assault Rifle destroyed. EK-164(u) builds Twisted Machinery. Lgt. Ion Engine destroyed. Assault Rifle destroyed. Scrap Shield falls loose from the Twisted Machinery. PO-K5J(R): "OHNO!" Map ----- +----------------------------------------------------+ | ???????????????????????????????????????????=%"???? | | ??????????????????????????????????????????##*##### | | ??????????????????????????????????????????# # # | | ??????????????????????????????????????????## | | ???????????????????????????????????????????# # # | | ???????????????????????????????????????????# #### | | ???????????????????????????????????????????# #? | | ???????????????????????????????????????????# #? | | ???????????????????????????????????????????# ##? | | ??????????????????????????????????????????## ### | | ?????????????????????????????????????????## # # | | ?????????????????????????????????????????# | | ?????????????????????????????????????????## | | ??????????????????????????????????????????### # | | ????????????????????????????????????????????### | | ??????????????????????????????????????????????## | | ??????????????????????????????????????????????# | | ?????????????????????????????????????? ???????## | | ????????????????????????????????????? ????????# | | ????????????????????"?????????????## ????????# | | ????????????????????"""?????##????* ?????????# | | ????????????????????#" "??##"#???#"% ????????# # | | ?????????????????????# "###""#?##""%??????????#### | | ?????????????????????#"""#""#?## #??????????????? | | ?????????????? ### "#" ### #???????????????? | | ??????????????# R !"@ ##?????????####?? | | ??????????????# "" "" ###?????###""##? | | ???????????????? """### #?????# " #? | | ????????????????? "" ??## #?????# #? | | ????????????????????!" ????## #???### ## | | ?????????????????????#??????## RR ##### " # | | ?????????????????????????????##### ### " | | ?????????????????????????????????## ###"""## | | ??????????????????????????????????## ""## "##### | | ???????????????????????????????????## ##?#?? | | ????????????????????????????????????## # ## | | ?????????????????????????????????????# | | ????????????????????????????????????## # | | ??????????????????????????????????### ### ## ## | | ??????????????????????????????????# ##?###??##? | | ??????????????????????????????????# #?????????? | | ??????????????????????????????????# #?????????? | | ??????????????????????????????????### ##?????????? | | ????????????????????????????????????###??????????? | | ?????????????????????????????????????????????????? | | ?????????????????????????????????????????????????? | | ?????????????????????????????????????????????????? | | ?????????????????????????????????????????????????? | | ?????????????????????????????????????????????????? | | ?????????????????????????????????????????????????? | +----------------------------------------------------+ Best States ------------- Heat Dissipation 25 Energy Generation 10 Energy Capacity 250 Matter Stores 205 Matter Capacity 300 Sight Range 16 Terrain Scan Density 10 Evasion (%) 43 Item Schematics ----------------- None Robot Schematics ------------------ None Fabricated ------------ Nothing Repaired ---------- Nothing Alien Tech Used ----------------- None Achievements -------------- None Challenges ------------ None Game ------ Seed CentriumChargeSpoofer Manual? 0 Play Time 00:08:11 Cumulative 8.5 hours Start 2025.05.15 @ 15:08:54 End 2025.05.15 @ 15:15:53 Sessions 1 Manual Loads 0 Difficulty Rogue Special Mode None Game No. 32 Rogue 32 Adventurer 0 Explorer 0 Win Type - Total 0 Types 0/0/0/0/0/0/0/0/0/0 Lore% 6 Gallery% 15 Achievement% 17 Wizard Run 0 Options --------- Layout 1 ASCII 0 Keyboard 0 Movement Mouse Keybinds 0 Fullscreen 1 Font 24/Smallcaps Map View 50x35 Zoom Use 0% Tactical HUD 0 Map Filters NONE Filters NONE Steam 1 RUN: ade85be5-11c0-46ab-bd46-976312c8cbfc